[Event "GrandPrix_29.05"]
[Site "Chess.com"]
[Date "2020.05.29"]
[Round "6"]
[White "Nodar_Lortkipanidze"]
[Black "Rakhmanov_Aleksandr"]
[Result "1-0"]
[WhiteElo "2552"]
[BlackElo "2490"]
[TimeControl "600+2"]
[EndTime "12:05:03 PDT"]
[Termination "Nodar_Lortkipanidze won on time"]

1. e4 {[%clk 0:10:01.9]} 1... c5 {[%clk 0:10:00.1]} 2. c3 {[%clk 0:10:02.9]}
2... e6 {[%clk 0:09:59.5]} 3. d4 {[%clk 0:10:03.7]} 3... d5 {[%clk 0:10:01.1]}
4. exd5 {[%clk 0:10:02.9]} 4... exd5 {[%clk 0:10:03]} 5. Nf3 {[%clk 0:10:04.5]}
5... Nc6 {[%clk 0:10:04]} 6. Be3 {[%clk 0:10:05.7]} 6... cxd4 {[%clk 0:10:03.1]}
7. Bxd4 {[%clk 0:10:07.1]} 7... Nxd4 {[%clk 0:10:02.1]} 8. Qxd4 {[%clk
0:10:06.3]} 8... Nf6 {[%clk 0:10:02.7]} 9. Bb5+ {[%clk 0:10:07.3]} 9... Bd7
{[%clk 0:10:03.6]} 10. Bxd7+ {[%clk 0:10:08.6]} 10... Qxd7 {[%clk 0:10:05.5]}
11. O-O {[%clk 0:10:09.7]} 11... Be7 {[%clk 0:10:07.1]} 12. Ne5 {[%clk
0:09:59.8]} 12... Qb5 {[%clk 0:09:44.7]} 13. c4 {[%clk 0:07:59.4]} 13... dxc4
{[%clk 0:09:32.6]} 14. Nc3 {[%clk 0:08:00.2]} 14... Qc5 {[%clk 0:08:47.8]} 15.
Qxc5 {[%clk 0:06:42.5]} 15... Bxc5 {[%clk 0:08:49.7]} 16. Nxc4 {[%clk
0:06:43.2]} 16... O-O {[%clk 0:08:19.7]} 17. Rad1 {[%clk 0:06:43.1]} 17... Rfe8
{[%clk 0:07:46.8]} 18. Nd6 {[%clk 0:06:40]} 18... Re7 {[%clk 0:06:48.9]} 19. g3
{[%clk 0:06:34.7]} 19... g6 {[%clk 0:06:36.1]} 20. Kg2 {[%clk 0:06:32.8]} 20...
Kf8 {[%clk 0:06:14.2]} 21. a3 {[%clk 0:05:22.3]} 21... Rd8 {[%clk 0:05:27.7]}
22. Nc4 {[%clk 0:04:59.5]} 22... Rc8 {[%clk 0:04:53.2]} 23. Rd3 {[%clk
0:04:20.3]} 23... Ne4 {[%clk 0:03:43.3]} 24. Nd5 {[%clk 0:03:58.6]} 24... Rd7
{[%clk 0:03:24.9]} 25. Ne5 {[%clk 0:03:44.8]} 25... Rdd8 {[%clk 0:02:57.9]} 26.
f3 {[%clk 0:03:11.6]} 26... Ng5 {[%clk 0:02:18.2]} 27. Rc1 {[%clk 0:02:47.5]}
27... Ne6 {[%clk 0:01:33.4]} 28. Nf6 {[%clk 0:02:06.7]} 28... Kg7 {[%clk
0:00:56.6]} 29. Ne4 {[%clk 0:02:07.2]} 29... Bd4 {[%clk 0:00:42.6]} 30. Rxc8
{[%clk 0:01:01.4]} 30... Rxc8 {[%clk 0:00:44.5]} 31. f4 {[%clk 0:00:52.6]} 31...
Rc2+ {[%clk 0:00:39.5]} 32. Kh3 {[%clk 0:00:41.6]} 32... Rxb2 {[%clk 0:00:23.7]}
33. Nf3 {[%clk 0:00:42.3]} 33... Bc5 {[%clk 0:00:15]} 34. Rd7 {[%clk 0:00:41.9]}
34... Bxa3 {[%clk 0:00:14.2]} 35. Ne5 {[%clk 0:00:40.2]} 35... Kf8 {[%clk
0:00:02.2]} 36. Rxf7+ {[%clk 0:00:25.7]} 36... Ke8 {[%clk 0:00:03.6]} 37. Nf6+
{[%clk 0:00:21.5]} 37... Kd8 {[%clk 0:00:04.4]} 38. Rd7+ {[%clk 0:00:20.4]}
38... Kc8 {[%clk 0:00:04.8]} 39. Rxh7 {[%clk 0:00:22]} 39... Rb3 {[%clk
0:00:02.3]} 40. Rh8+ {[%clk 0:00:22.6]} 40... Kc7 {[%clk 0:00:03.3]} 41. Nxg6
{[%clk 0:00:19.4]} 41... Kd6 {[%clk 0:00:04]} 42. f5 {[%clk 0:00:19.7]} 42...
Bb2 {[%clk 0:00:05.1]} 43. Ne4+ {[%clk 0:00:14.9]} 43... Kd5 {[%clk 0:00:03.4]}
44. Re8 {[%clk 0:00:12.7]} 44... Nd4 {[%clk 0:00:03.7]} 45. Nf4+ {[%clk
0:00:13.2]} 45... Kc6 {[%clk 0:00:03.3]} 46. f6 {[%clk 0:00:14.6]} 46... Ba3
{[%clk 0:00:03.2]} 47. f7 {[%clk 0:00:15]} 47... Rb2 {[%clk 0:00:04.5]} 48. Nf6
{[%clk 0:00:10.2]} 48... Nf3 {[%clk 0:00:05]} 49. Kg4 {[%clk 0:00:11.3]} 49...
Nxh2+ {[%clk 0:00:05.5]} 50. Kf5 {[%clk 0:00:12.9]} 50... Rb5+ {[%clk
0:00:06.8]} 51. Kg6 {[%clk 0:00:14.4]} 51... Nf3 {[%clk 0:00:08.3]} 52. Ne6
{[%clk 0:00:15.8]} 52... Ne5+ {[%clk 0:00:08.1]} 53. Kg7 {[%clk 0:00:17.4]}
53... Nxf7 {[%clk 0:00:09.5]} 54. Kxf7 {[%clk 0:00:19.3]} 54... Rb3 {[%clk
0:00:10.5]} 55. g4 {[%clk 0:00:20.6]} 55... Rg3 {[%clk 0:00:09.9]} 56. g5 {[%clk
0:00:21.8]} 56... Bb2 {[%clk 0:00:09.8]} 57. Nf4 {[%clk 0:00:17.8]} 57... Rxg5
{[%clk 0:00:08.9]} 58. Re6+ {[%clk 0:00:19.2]} 58... Kb5 {[%clk 0:00:09]} 59.
N4d5 {[%clk 0:00:19]} 59... Bxf6 {[%clk 0:00:09.8]} 60. Nxf6 {[%clk 0:00:20.3]}
60... a5 {[%clk 0:00:08.7]} 61. Ne4 {[%clk 0:00:21.7]} 61... Rg2 {[%clk
0:00:06.1]} 62. Nd6+ {[%clk 0:00:22.2]} 62... Kc6 {[%clk 0:00:05.9]} 63. Nc4+
{[%clk 0:00:22.3]} 63... Kd5 {[%clk 0:00:07.1]} 64. Nxa5 {[%clk 0:00:22.2]}
64... b5 {[%clk 0:00:04.9]} 65. Rb6 {[%clk 0:00:16.8]} 65... Kc5 {[%clk
0:00:04.9]} 66. Rb8 {[%clk 0:00:17.9]} 66... Ra2 {[%clk 0:00:05.7]} 67. Nb7+
{[%clk 0:00:18.8]} 67... Kb4 {[%clk 0:00:05.5]} 68. Nd6 {[%clk 0:00:19.8]} 68...
Ra5 {[%clk 0:00:06]} 69. Ke6 {[%clk 0:00:20.7]} 69... Ka4 {[%clk 0:00:06.3]} 70.
Kd5 {[%clk 0:00:21.6]} 70... b4+ {[%clk 0:00:06.4]} 71. Kc4 {[%clk 0:00:22.9]}
71... Ra7 {[%clk 0:00:04]} 72. Nb5 {[%clk 0:00:22.6]} 72... Ra5 {[%clk
0:00:03.8]} 73. Nd4 {[%clk 0:00:17.8]} 73... Ka3 {[%clk 0:00:02.4]} 74. Rxb4
{[%clk 0:00:19]} 74... Ka2 {[%clk 0:00:02.9]} 75. Nb5 {[%clk 0:00:19.1]} 75...
Ka1 {[%clk 0:00:02.4]} 76. Nc3 {[%clk 0:00:20.5]} 1-0

[Event "GrandPrix_29.05"]
[Site "Chess.com"]
[Date "2020.05.29"]
[Round "6"]
[White "Evgeny81"]
[Black "WhiteCapital80"]
[Result "1-0"]
[WhiteElo "2472"]
[BlackElo "2234"]
[TimeControl "600+2"]
[EndTime "12:05:03 PDT"]
[Termination "Evgeny81 won by resignation"]

1. d4 {[%clk 0:10:01.9]} 1... e6 {[%clk 0:09:54.3]} 2. c4 {[%clk 0:10:02.3]}
2... d5 {[%clk 0:09:54]} 3. Nf3 {[%clk 0:10:02.8]} 3... Nf6 {[%clk 0:09:54.6]}
4. Bg5 {[%clk 0:10:03.7]} 4... Be7 {[%clk 0:09:55.3]} 5. Nc3 {[%clk 0:10:04.1]}
5... Nbd7 {[%clk 0:09:55.1]} 6. e3 {[%clk 0:10:04.4]} 6... O-O {[%clk
0:09:55.9]} 7. cxd5 {[%clk 0:10:00.9]} 7... exd5 {[%clk 0:09:56.5]} 8. Bd3
{[%clk 0:09:57.6]} 8... c6 {[%clk 0:09:57.7]} 9. Qc2 {[%clk 0:09:55]} 9... Re8
{[%clk 0:09:58.2]} 10. O-O {[%clk 0:09:55.2]} 10... Nf8 {[%clk 0:09:59.2]} 11.
a3 {[%clk 0:09:40.5]} 11... a5 {[%clk 0:09:54.9]} 12. h3 {[%clk 0:09:00.5]}
12... Bd6 {[%clk 0:09:26]} 13. Bf4 {[%clk 0:08:46.5]} 13... Ng6 {[%clk
0:08:33.3]} 14. Bxd6 {[%clk 0:08:44.3]} 14... Qxd6 {[%clk 0:08:34.2]} 15. Rab1
{[%clk 0:08:27.8]} 15... Qe7 {[%clk 0:08:23.2]} 16. b4 {[%clk 0:07:55.6]} 16...
axb4 {[%clk 0:08:23.8]} 17. axb4 {[%clk 0:07:56.2]} 17... Ne4 {[%clk 0:08:19]}
18. Bxe4 {[%clk 0:07:46.9]} 18... dxe4 {[%clk 0:08:19.5]} 19. Nd2 {[%clk
0:07:48.2]} 19... f5 {[%clk 0:07:27.2]} 20. b5 {[%clk 0:07:23.5]} 20... f4
{[%clk 0:06:08.2]} 21. bxc6 {[%clk 0:06:09]} 21... bxc6 {[%clk 0:05:16.4]} 22.
Qxe4 {[%clk 0:06:07.2]} 22... Qxe4 {[%clk 0:05:04.7]} 23. Ndxe4 {[%clk
0:05:21.3]} 23... Bf5 {[%clk 0:04:57.9]} 24. f3 {[%clk 0:05:12.2]} 24... fxe3
{[%clk 0:04:57.7]} 25. Rbe1 {[%clk 0:05:12.5]} 25... Bxe4 {[%clk 0:04:12.5]} 26.
Nxe4 {[%clk 0:04:57.7]} 26... Ra3 {[%clk 0:04:06.7]} 27. Ra1 {[%clk 0:03:59.1]}
27... Rea8 {[%clk 0:03:52.7]} 28. Rxa3 {[%clk 0:03:03.1]} 28... Rxa3 {[%clk
0:03:52]} 29. g3 {[%clk 0:03:04.1]} 29... Ne7 {[%clk 0:03:29.7]} 30. Nd6 {[%clk
0:02:03.8]} 30... Rd3 {[%clk 0:03:23.5]} 31. Re1 {[%clk 0:01:40.4]} 31... Nd5
{[%clk 0:03:22.7]} 32. Nc4 {[%clk 0:01:34]} 32... Rc3 {[%clk 0:02:55.8]} 33. Ne5
{[%clk 0:01:20.9]} 33... g5 {[%clk 0:02:16.4]} 34. Kf1 {[%clk 0:01:15]} 34...
Kg7 {[%clk 0:02:12.3]} 35. Ke2 {[%clk 0:00:59.4]} 35... h5 {[%clk 0:01:58.7]}
36. Ra1 {[%clk 0:00:32.3]} 36... Rc2+ {[%clk 0:01:22.9]} 37. Kd3 {[%clk
0:00:28.7]} 37... Rd2+ {[%clk 0:01:11.3]} 38. Ke4 {[%clk 0:00:30]} 38... e2
{[%clk 0:01:11]} 39. Re1 {[%clk 0:00:08.6]} 39... Rd1 {[%clk 0:01:07.3]} 40. Nd3
{[%clk 0:00:09.4]} 40... Kf6 {[%clk 0:00:37.7]} 41. h4 {[%clk 0:00:08.2]} 41...
gxh4 {[%clk 0:00:30.1]} 42. gxh4 {[%clk 0:00:09.2]} 42... Nb4 {[%clk 0:00:30.7]}
43. Rxe2 {[%clk 0:00:04.1]} 43... Nxd3 {[%clk 0:00:26.3]} 44. Rc2 {[%clk
0:00:04.9]} 44... Rc1 {[%clk 0:00:23.9]} 45. Kxd3 {[%clk 0:00:04.9]} 45... Rh1
{[%clk 0:00:17.8]} 46. Rxc6+ {[%clk 0:00:05.4]} 46... Kf5 {[%clk 0:00:19.2]} 47.
Ke3 {[%clk 0:00:06.7]} 47... Rxh4 {[%clk 0:00:19.7]} 48. Rc5+ {[%clk 0:00:07.9]}
48... Kf6 {[%clk 0:00:20.6]} 49. f4 {[%clk 0:00:08.9]} 49... Rh1 {[%clk
0:00:21.1]} 50. Rc6+ {[%clk 0:00:09.3]} 50... Kf5 {[%clk 0:00:21.9]} 51. Rc5+
{[%clk 0:00:10.7]} 51... Kf6 {[%clk 0:00:23]} 52. Ke4 {[%clk 0:00:11.7]} 52...
Re1+ {[%clk 0:00:21.3]} 53. Kf3 {[%clk 0:00:13.1]} 53... h4 {[%clk 0:00:21.8]}
54. Rc6+ {[%clk 0:00:12.4]} 54... Kf5 {[%clk 0:00:20.4]} 55. Rc5+ {[%clk
0:00:13.8]} 55... Kf6 {[%clk 0:00:21.5]} 56. Rh5 {[%clk 0:00:14.8]} 56... Rd1
{[%clk 0:00:20.3]} 57. Ke4 {[%clk 0:00:14]} 57... Re1+ {[%clk 0:00:20.7]} 58.
Kd5 {[%clk 0:00:09.4]} 58... Rh1 {[%clk 0:00:20.1]} 59. Kd6 {[%clk 0:00:09]}
59... h3 {[%clk 0:00:20.6]} 60. d5 {[%clk 0:00:10.4]} 60... h2 {[%clk
0:00:19.7]} 61. f5 {[%clk 0:00:07.9]} 61... Ra1 {[%clk 0:00:12.2]} 62. Rh3
{[%clk 0:00:05.5]} 62... Ra6+ {[%clk 0:00:11.9]} 63. Kc5 {[%clk 0:00:05.7]}
63... Kxf5 {[%clk 0:00:11.4]} 64. Rxh2 {[%clk 0:00:06.3]} 64... Kf6 {[%clk
0:00:11.6]} 65. Re2 {[%clk 0:00:06.4]} 65... Kf7 {[%clk 0:00:11.5]} 66. d6
{[%clk 0:00:07.2]} 66... Ra1 {[%clk 0:00:12.6]} 67. Kc6 {[%clk 0:00:08.1]} 67...
Rc1+ {[%clk 0:00:11.9]} 68. Kd7 {[%clk 0:00:09.1]} 68... Rd1 {[%clk 0:00:13.1]}
69. Rf2+ {[%clk 0:00:09.8]} 69... Kg7 {[%clk 0:00:13.7]} 70. Ke7 {[%clk
0:00:10.8]} 70... Re1+ {[%clk 0:00:14.6]} 71. Kd8 {[%clk 0:00:12]} 71... Rd1
{[%clk 0:00:15.6]} 72. d7 {[%clk 0:00:12.8]} 72... Kg6 {[%clk 0:00:09]} 73. Rf4
{[%clk 0:00:12.6]} 73... Rd2 {[%clk 0:00:08.4]} 74. Ke7 {[%clk 0:00:11.3]} 74...
Re2+ {[%clk 0:00:09.7]} 75. Kd6 {[%clk 0:00:12.4]} 75... Rd2+ {[%clk 0:00:10.8]}
76. Ke6 {[%clk 0:00:13.4]} 76... Kg7 {[%clk 0:00:11.5]} 77. Rf5 {[%clk
0:00:12.8]} 1-0

[Event "GrandPrix_29.05"]
[Site "Chess.com"]
[Date "2020.05.29"]
[Round "6"]
[White "Vesper2018"]
[Black "TheFireChess"]
[Result "1/2-1/2"]
[WhiteElo "1915"]
[BlackElo "2193"]
[TimeControl "600+2"]
[EndTime "12:05:18 PDT"]
[Termination "Game drawn - insufficient material"]

1. e4 {[%clk 0:10:00.3]} 1... c6 {[%clk 0:10:00.7]} 2. d4 {[%clk 0:10:00.9]}
2... d5 {[%clk 0:10:02.6]} 3. e5 {[%clk 0:10:01.8]} 3... c5 {[%clk 0:10:03.7]}
4. c3 {[%clk 0:10:02.2]} 4... Nc6 {[%clk 0:10:04.9]} 5. Be2 {[%clk 0:10:02.6]}
5... Nh6 {[%clk 0:09:46.3]} 6. Nf3 {[%clk 0:09:45.7]} 6... Bg4 {[%clk
0:09:44.6]} 7. dxc5 {[%clk 0:09:33.8]} 7... e6 {[%clk 0:09:39]} 8. b4 {[%clk
0:09:28.5]} 8... Bxf3 {[%clk 0:09:32.3]} 9. Bxf3 {[%clk 0:09:29.2]} 9... Nxe5
{[%clk 0:09:33.7]} 10. Be2 {[%clk 0:09:22.8]} 10... g6 {[%clk 0:09:10.9]} 11.
O-O {[%clk 0:07:45.2]} 11... Bg7 {[%clk 0:08:41.6]} 12. Na3 {[%clk 0:07:37.3]}
12... O-O {[%clk 0:08:25.6]} 13. Bd2 {[%clk 0:07:25.5]} 13... Nf5 {[%clk
0:08:22.2]} 14. Nc2 {[%clk 0:07:19.1]} 14... Nc6 {[%clk 0:08:19.4]} 15. Bd3
{[%clk 0:07:13.1]} 15... a6 {[%clk 0:07:58]} 16. f4 {[%clk 0:06:46.8]} 16... h5
{[%clk 0:07:29.4]} 17. a4 {[%clk 0:06:40.4]} 17... a5 {[%clk 0:07:08.9]} 18.
Bxf5 {[%clk 0:05:37.2]} 18... exf5 {[%clk 0:06:46.2]} 19. b5 {[%clk 0:05:38.3]}
19... Ne7 {[%clk 0:06:32.8]} 20. Ra3 {[%clk 0:05:03.2]} 20... Kh7 {[%clk
0:04:31.7]} 21. Be3 {[%clk 0:04:57]} 21... Ng8 {[%clk 0:04:30.3]} 22. Rf2 {[%clk
0:04:19]} 22... Nf6 {[%clk 0:04:28.1]} 23. Rd2 {[%clk 0:04:15]} 23... Qc7 {[%clk
0:04:17.8]} 24. Kh1 {[%clk 0:03:38.2]} 24... Rad8 {[%clk 0:03:56]} 25. Qg1
{[%clk 0:03:16.5]} 25... Rde8 {[%clk 0:03:28.1]} 26. Rd3 {[%clk 0:01:30.2]}
26... Ng4 {[%clk 0:02:00.5]} 27. Ra1 {[%clk 0:01:29.3]} 27... Nxe3 {[%clk
0:01:59.4]} 28. Nxe3 {[%clk 0:01:27.3]} 28... Qxc5 {[%clk 0:01:58.5]} 29. Nxd5
{[%clk 0:01:26.3]} 29... Qc4 {[%clk 0:01:54]} 30. Rd2 {[%clk 0:01:03.7]} 30...
Rd8 {[%clk 0:01:50]} 31. Rad1 {[%clk 0:01:01.2]} 31... Bxc3 {[%clk 0:01:05.5]}
32. Ne3 {[%clk 0:00:42.3]} 32... Qc7 {[%clk 0:01:00.5]} 33. Rc2 {[%clk 0:00:38]}
33... Rxd1 {[%clk 0:00:54.1]} 34. Nxd1 {[%clk 0:00:33.3]} 34... Qxf4 {[%clk
0:00:53.9]} 35. Nxc3 {[%clk 0:00:30.8]} 35... Qc4 {[%clk 0:00:49.1]} 36. Qd1
{[%clk 0:00:29.7]} 36... Rc8 {[%clk 0:00:48.3]} 37. h3 {[%clk 0:00:27.6]} 37...
h4 {[%clk 0:00:31.9]} 38. Rc1 {[%clk 0:00:23.5]} 38... Qb4 {[%clk 0:00:24.9]}
39. Ne2 {[%clk 0:00:20.2]} 39... Rxc1 {[%clk 0:00:23.8]} 40. Nxc1 {[%clk
0:00:21.3]} 40... Qb1 {[%clk 0:00:25]} 41. Kh2 {[%clk 0:00:21.9]} 41... Qa1
{[%clk 0:00:25.2]} 42. Qe1 {[%clk 0:00:22.8]} 42... Kg7 {[%clk 0:00:23.5]} 43.
Nd3 {[%clk 0:00:19.4]} 43... Qxa4 {[%clk 0:00:24.8]} 44. Qe5+ {[%clk 0:00:19.6]}
44... Kh7 {[%clk 0:00:24.2]} 45. Qf6 {[%clk 0:00:17.3]} 45... Qc4 {[%clk
0:00:24.6]} 46. Qd6 {[%clk 0:00:10.3]} 46... Qxb5 {[%clk 0:00:22.9]} 47. Ne5
{[%clk 0:00:09.3]} 47... Qe8 {[%clk 0:00:23.8]} 48. Nd7 {[%clk 0:00:09.3]} 48...
Kg7 {[%clk 0:00:21.8]} 49. Qd4+ {[%clk 0:00:10.3]} 49... Kh6 {[%clk 0:00:16.5]}
50. Qxh4+ {[%clk 0:00:11.4]} 50... Kg7 {[%clk 0:00:17.9]} 51. Qd4+ {[%clk
0:00:12.7]} 51... Kh6 {[%clk 0:00:18.9]} 52. Nf6 {[%clk 0:00:10.9]} 52... Qb8+
{[%clk 0:00:18.9]} 53. Kh1 {[%clk 0:00:11]} 53... a4 {[%clk 0:00:20.1]} 54. Qxa4
{[%clk 0:00:08.5]} 54... Qe5 {[%clk 0:00:19.5]} 55. Nd7 {[%clk 0:00:05.8]} 55...
Qe1+ {[%clk 0:00:19.8]} 56. Kh2 {[%clk 0:00:07.2]} 56... Qe3 {[%clk 0:00:20.1]}
57. Qc4 {[%clk 0:00:04.1]} 57... f4 {[%clk 0:00:20.4]} 58. Nf6 {[%clk
0:00:04.6]} 58... Qg3+ {[%clk 0:00:21.1]} 59. Kg1 {[%clk 0:00:04.9]} 59... Qe1+
{[%clk 0:00:23]} 60. Qf1 {[%clk 0:00:04.3]} 60... Qe3+ {[%clk 0:00:23.4]} 61.
Kh1 {[%clk 0:00:05.6]} 61... Qd4 {[%clk 0:00:23.7]} 62. Ng4+ {[%clk 0:00:06.5]}
62... Kg7 {[%clk 0:00:24.7]} 63. Qc1 {[%clk 0:00:07.5]} 63... b5 {[%clk
0:00:24.6]} 64. Nh2 {[%clk 0:00:07.7]} 64... b4 {[%clk 0:00:25.6]} 65. Nf3
{[%clk 0:00:09.2]} 65... Qc3 {[%clk 0:00:26.8]} 66. Qxc3+ {[%clk 0:00:10]} 66...
bxc3 {[%clk 0:00:27.6]} 67. Nd4 {[%clk 0:00:11.3]} 67... Kf6 {[%clk 0:00:29.1]}
68. Kg1 {[%clk 0:00:12.5]} 68... Ke5 {[%clk 0:00:30.7]} 69. Nc2 {[%clk
0:00:13.7]} 69... Ke4 {[%clk 0:00:32.3]} 70. Kf2 {[%clk 0:00:14.9]} 70... Kd3
{[%clk 0:00:33.8]} 71. Nb4+ {[%clk 0:00:11.5]} 71... Kc4 {[%clk 0:00:33]} 72.
Nc2 {[%clk 0:00:12.6]} 72... Kd3 {[%clk 0:00:22.1]} 73. Na3 {[%clk 0:00:03.6]}
73... c2 {[%clk 0:00:20.9]} 74. Nxc2 {[%clk 0:00:04.8]} 74... Kxc2 {[%clk
0:00:22.8]} 75. h4 {[%clk 0:00:04.9]} 75... Kd3 {[%clk 0:00:21.5]} 76. Kf3
{[%clk 0:00:06.4]} 76... Kd4 {[%clk 0:00:22.9]} 77. Kxf4 {[%clk 0:00:07.8]}
77... f6 {[%clk 0:00:17.6]} 78. g4 {[%clk 0:00:06.8]} 78... Kd5 {[%clk 0:00:19]}
79. g5 {[%clk 0:00:05]} 79... Ke6 {[%clk 0:00:18.8]} 80. gxf6 {[%clk 0:00:03.3]}
80... Kxf6 {[%clk 0:00:20.7]} 81. Kg4 {[%clk 0:00:04.9]} 81... Kf7 {[%clk
0:00:22.1]} 82. Kg5 {[%clk 0:00:06.5]} 82... Kg7 {[%clk 0:00:23.4]} 83. h5
{[%clk 0:00:08.1]} 83... gxh5 {[%clk 0:00:25.3]} 84. Kxh5 {[%clk 0:00:09.6]}
1/2-1/2

[Event "GrandPrix_29.05"]
[Site "Chess.com"]
[Date "2020.05.29"]
[Round "6"]
[White "rim1618"]
[Black "Andrei_Belozerov"]
[Result "0-1"]
[WhiteElo "2415"]
[BlackElo "2671"]
[TimeControl "600+2"]
[EndTime "12:05:30 PDT"]
[Termination "Andrei_Belozerov won by resignation"]

1. Nf3 {[%clk 0:10:01.9]} 1... d5 {[%clk 0:10:00.4]} 2. g3 {[%clk 0:10:02.8]}
2... Bg4 {[%clk 0:10:01.4]} 3. Bg2 {[%clk 0:10:03.3]} 3... Nd7 {[%clk
0:10:02.4]} 4. c4 {[%clk 0:10:02.6]} 4... e6 {[%clk 0:10:02.8]} 5. cxd5 {[%clk
0:09:56.5]} 5... exd5 {[%clk 0:10:03.2]} 6. O-O {[%clk 0:09:57.6]} 6... Ngf6
{[%clk 0:09:45.2]} 7. Nc3 {[%clk 0:09:57.7]} 7... c6 {[%clk 0:09:40.3]} 8. d4
{[%clk 0:09:58.3]} 8... Bd6 {[%clk 0:08:33.8]} 9. Nh4 {[%clk 0:09:58]} 9... O-O
{[%clk 0:07:25]} 10. f3 {[%clk 0:09:57.3]} 10... Be6 {[%clk 0:07:06.2]} 11. e4
{[%clk 0:09:55.9]} 11... dxe4 {[%clk 0:07:04.1]} 12. fxe4 {[%clk 0:09:57.8]}
12... Be7 {[%clk 0:06:15.8]} 13. Nf5 {[%clk 0:08:49.8]} 13... Bxf5 {[%clk
0:05:49.9]} 14. Rxf5 {[%clk 0:08:51.7]} 14... Nb6 {[%clk 0:05:50.8]} 15. Kh1
{[%clk 0:07:46.1]} 15... c5 {[%clk 0:04:51.8]} 16. d5 {[%clk 0:07:27.1]} 16...
Nfd7 {[%clk 0:04:51.7]} 17. d6 {[%clk 0:04:07.7]} 17... Bf6 {[%clk 0:04:48.9]}
18. Nd5 {[%clk 0:04:03.1]} 18... Nxd5 {[%clk 0:03:18.6]} 19. Qxd5 {[%clk
0:04:01.7]} 19... Nb6 {[%clk 0:03:19.3]} 20. Qxc5 {[%clk 0:03:37.1]} 20... Rc8
{[%clk 0:03:17.5]} 21. Qb4 {[%clk 0:03:15.6]} 21... Rc4 {[%clk 0:03:04.8]} 22.
Qb5 {[%clk 0:03:13.7]} 22... Qxd6 {[%clk 0:02:53.6]} 23. e5 {[%clk 0:02:41]}
23... Qc5 {[%clk 0:02:38.2]} 24. exf6 {[%clk 0:02:36.5]} 24... Rxc1+ {[%clk
0:02:37.2]} 25. Rxc1 {[%clk 0:02:37.9]} 25... Qxc1+ {[%clk 0:02:38.4]} 26. Rf1
{[%clk 0:02:39.1]} 26... Qe3 {[%clk 0:02:13.2]} 27. fxg7 {[%clk 0:02:26.5]}
27... Kxg7 {[%clk 0:02:08.1]} 28. Bxb7 {[%clk 0:02:23.1]} 28... Re8 {[%clk
0:01:27.3]} 29. Qf5 {[%clk 0:01:59.6]} 29... Re7 {[%clk 0:01:21.7]} 30. Bg2
{[%clk 0:01:57.4]} 30... Nd7 {[%clk 0:01:08]} 31. b4 {[%clk 0:01:37.4]} 31...
Qe5 {[%clk 0:00:27.7]} 32. Qg4+ {[%clk 0:01:28.2]} 32... Kf8 {[%clk 0:00:27.3]}
33. a4 {[%clk 0:01:23.9]} 33... Nf6 {[%clk 0:00:28.2]} 34. Qh4 {[%clk
0:01:11.4]} 34... Kg7 {[%clk 0:00:22]} 35. b5 {[%clk 0:01:12.1]} 35... Rd7
{[%clk 0:00:18]} 36. Qb4 {[%clk 0:00:24.2]} 36... Rd4 {[%clk 0:00:17.1]} 37. Qb2
{[%clk 0:00:24.9]} 37... Ng4 {[%clk 0:00:15.9]} 38. Bf3 {[%clk 0:00:08.6]} 38...
Ne3 {[%clk 0:00:12.5]} 39. Re1 {[%clk 0:00:09.5]} 39... Qf6 {[%clk 0:00:08.5]}
40. Qe2 {[%clk 0:00:08.5]} 40... Nc4 {[%clk 0:00:06.7]} 41. Bg2 {[%clk
0:00:07.2]} 41... Nd6 {[%clk 0:00:05.5]} 42. a5 {[%clk 0:00:06.8]} 42... Rb4
{[%clk 0:00:04.6]} 43. Bc6 {[%clk 0:00:05.2]} 43... Nc4 {[%clk 0:00:05.1]} 44.
Rf1 {[%clk 0:00:05.3]} 44... Qd4 {[%clk 0:00:05.2]} 45. Qf3 {[%clk 0:00:04.5]}
45... Ne5 {[%clk 0:00:06]} 46. Qf4 {[%clk 0:00:04.7]} 46... Qxf4 {[%clk
0:00:06]} 47. gxf4 {[%clk 0:00:06]} 47... Nxc6 {[%clk 0:00:07]} 48. bxc6 {[%clk
0:00:07.3]} 48... Rc4 {[%clk 0:00:08.6]} 49. Rb1 {[%clk 0:00:06.7]} 49... Rxc6
{[%clk 0:00:08.7]} 50. Rb7 {[%clk 0:00:08.2]} 50... Rc4 {[%clk 0:00:08.8]} 51.
f5 {[%clk 0:00:07.7]} 51... Kf6 {[%clk 0:00:09.1]} 52. Rxa7 {[%clk 0:00:08.5]}
52... Rc5 {[%clk 0:00:10.5]} 53. a6 {[%clk 0:00:06.8]} 53... Rxf5 {[%clk
0:00:10.6]} 54. Rb7 {[%clk 0:00:07.4]} 54... Ra5 {[%clk 0:00:11.4]} 55. a7
{[%clk 0:00:08.6]} 55... Kg6 {[%clk 0:00:11.5]} 56. Kg2 {[%clk 0:00:09.7]} 56...
Ra3 {[%clk 0:00:12.3]} 57. Kf2 {[%clk 0:00:09.5]} 57... h5 {[%clk 0:00:12.7]}
58. h4 {[%clk 0:00:10]} 58... f6 {[%clk 0:00:13.2]} 59. Ke2 {[%clk 0:00:11]}
59... Kf5 {[%clk 0:00:14.2]} 60. Rg7 {[%clk 0:00:09.8]} 60... Ke4 {[%clk
0:00:12.3]} 61. Kd2 {[%clk 0:00:10.5]} 61... f5 {[%clk 0:00:13]} 62. Kc2 {[%clk
0:00:10.2]} 62... f4 {[%clk 0:00:14.2]} 63. Kb2 {[%clk 0:00:11.2]} 63... Ra6
{[%clk 0:00:13.8]} 64. Kc3 {[%clk 0:00:11.3]} 64... f3 {[%clk 0:00:14.5]} 65.
Re7+ {[%clk 0:00:12.6]} 65... Kf4 {[%clk 0:00:14.8]} 66. Rf7+ {[%clk 0:00:12.1]}
66... Kg3 {[%clk 0:00:15.8]} 67. Kb4 {[%clk 0:00:12.8]} 67... f2 {[%clk
0:00:15.9]} 68. Rg7+ {[%clk 0:00:11.9]} 68... Kxh4 {[%clk 0:00:15.9]} 69. Rf7
{[%clk 0:00:11.3]} 69... Kg3 {[%clk 0:00:16.9]} 70. Rg7+ {[%clk 0:00:12.5]}
70... Kf3 {[%clk 0:00:15.7]} 71. Rf7+ {[%clk 0:00:12.9]} 71... Ke2 {[%clk
0:00:16.9]} 72. Re7+ {[%clk 0:00:14.1]} 72... Kf3 {[%clk 0:00:15.3]} 73. Rf7+
{[%clk 0:00:15.2]} 73... Kg3 {[%clk 0:00:15.9]} 74. Rg7+ {[%clk 0:00:16]} 74...
Kh3 {[%clk 0:00:15.5]} 75. Rf7 {[%clk 0:00:15]} 75... Rxa7 {[%clk 0:00:16.3]}
76. Rxf2 {[%clk 0:00:15.7]} 76... Rc7 {[%clk 0:00:17]} 77. Rf8 {[%clk 0:00:14]}
77... h4 {[%clk 0:00:16.8]} 78. Rg8 {[%clk 0:00:14.8]} 78... Kh2 {[%clk
0:00:17.6]} 79. Kb3 {[%clk 0:00:16.3]} 79... h3 {[%clk 0:00:18.9]} 80. Kb2
{[%clk 0:00:17.4]} 80... Kh1 {[%clk 0:00:20.2]} 81. Rg6 {[%clk 0:00:18.5]} 81...
h2 {[%clk 0:00:20.7]} 82. Rg8 {[%clk 0:00:19.5]} 82... Rf7 {[%clk 0:00:21.7]}
83. Kc2 {[%clk 0:00:19.9]} 83... Rf1 {[%clk 0:00:23.2]} 84. Kd2 {[%clk 0:00:21]}
84... Rg1 {[%clk 0:00:24.4]} 85. Rh8 {[%clk 0:00:22.2]} 85... Kg2 {[%clk
0:00:25.5]} 86. Rg8+ {[%clk 0:00:23.6]} 86... Kf2 {[%clk 0:00:26.5]} 87. Rf8+
{[%clk 0:00:23.6]} 87... Kg3 {[%clk 0:00:27.6]} 88. Rg8+ {[%clk 0:00:24.7]}
88... Kf4 {[%clk 0:00:28.9]} 0-1